bitfinex-derivatives/quotes_BNBF0:USTF0_20230831
["timestamp","ask_amount","ask_price","bid_price","bid_amount"]
[1693460274057,0.07340365,223.4,223.21,0.82257553]
[1693460276358,0.07340365,223.4,223.2,0.07337724]
[1693460276561,0.07340365,223.39,223.19,0.07337724]
[1693460276759,0.07340365,223.39,223.2,0.82262671]
[1693460280660,0.07340365,223.39,223.19,0.07337724]
[1693460281663,0.07340365,223.38,223.18,0.07337724]
[1693460281863,0.07340365,223.39,223.19,0.89610444]
[1693460282165,0.07340365,223.39,223.18,0.07337724]
[1693460282367,0.07340365,223.39,223.19,0.82271995]
[1693460285968,0.07340365,223.4,223.19,0.82271995]
[1693460287365,0.14680731,223.42,223.19,0.82271995]
[1693460287366,0.07340365,223.39,223.19,0.82271995]
[1693460287570,0.07340365,223.4,223.19,0.82271995]
[1693460288372,0.07340365,223.39,223.19,0.82271995]
[1693460288573,0.07340365,223.4,223.19,0.82271995]
[1693460289874,0.07340365,223.39,223.19,0.82271995]
[1693460290173,0.07340365,223.4,223.19,0.82271995]
[1693460290374,0.07340365,223.39,223.19,0.82271995]
[1693460290572,0.07340365,223.4,223.19,0.82271995]
[1693460291269,0.07340365,223.39,223.19,0.82271995]
[1693460291470,0.07340365,223.4,223.19,0.82271995]
[1693460294477,0.07340365,223.4,223.19,0.89609719]
[1693460294674,0.07340365,223.4,223.2,0.82271995]
[1693460325199,0.07340365,223.39,223.2,0.82271995]
[1693460325797,0.07340365,223.4,223.2,0.82271995]
[1693460326201,0.07340365,223.39,223.2,0.82271995]
[1693460326402,0.07340365,223.4,223.2,0.82271995]
[1693460326604,0.07340365,223.39,223.2,0.82271995]
[1693460326799,0.07340365,223.4,223.2,0.82271995]
[1693460327502,0.07340365,223.39,223.2,0.82271995]
[1693460327903,0.07340365,223.4,223.2,0.82271995]
[1693460328103,0.07340365,223.39,223.2,0.82271995]
[1693460328303,0.07340365,223.4,223.2,0.82271995]
[1693460329305,0.07340365,223.39,223.2,0.89609719]
[1693460329504,0.07340365,223.39,223.21,0.8226326]
[1693460329704,0.07340365,223.39,223.2,0.89600984]
[1693460330005,0.07340365,223.4,223.2,0.07337724]
[1693460330206,0.07340365,223.4,223.21,0.82263057]
[1693460330406,0.07340365,223.4,223.2,0.07337724]
[1693460330806,0.07340365,223.39,223.2,0.07337724]
[1693460332205,0.07340365,223.4,223.2,0.07337724]
[1693460332808,0.07340365,223.39,223.2,0.07337724]
[1693460333404,0.07340365,223.39,223.19,0.07337724]
[1693460333607,0.07340365,223.39,223.2,0.89603598]
[1693460333907,0.07340365,223.4,223.2,0.07337724]
[1693460334406,0.07340365,223.39,223.2,0.07337724]
[1693460334608,0.07340365,223.4,223.2,0.07337724]
[1693460335804,0.07340365,223.39,223.2,0.07337724]
[1693460336008,0.07340365,223.4,223.2,0.07337724]
[1693460336209,0.07340365,223.39,223.2,0.07337724]
[1693460336610,0.07340365,223.39,223.19,0.07337724]
[1693460336910,0.07340365,223.39,223.2,0.82269908]
[1693460340215,0.07340365,223.39,223.2,0.89607632]
[1693460340417,0.07340365,223.39,223.19,0.07337724]
[1693460340616,0.07340365,223.39,223.2,0.89602125]
[1693460340818,0.07340365,223.39,223.2,0.07337724]
[1693460341215,0.07340365,223.4,223.21,0.8226231]
[1693460342318,0.07340365,223.4,223.2,0.07337724]
[1693460342519,0.07340365,223.4,223.21,0.82262571]
[1693460342920,0.07340365,223.4,223.2,0.07337724]
[1693460347626,0.07340365,223.39,223.19,0.07337724]
[1693460347828,0.07340365,223.39,223.2,0.82265465]
[1693460348328,0.07340365,223.4,223.2,0.89603189]
[1693460348530,0.07340365,223.4,223.2,0.07337724]
[1693460349028,0.07340365,223.4,223.19,0.07337724]
[1693460349224,0.07340365,223.4,223.13,0.14675448]
[1693460349225,0.07340365,223.4,223.2,0.89603126]
[1693460349425,0.07340365,223.39,223.19,0.07337724]
[1693460349626,0.07340365,223.39,223.2,0.82268521]
[1693460372750,0.07340365,223.4,223.2,0.82268521]
[1693460376553,0.07340365,223.39,223.2,0.82268521]
[1693460376857,0.07340365,223.4,223.2,0.82268521]
[1693460377050,0.07340365,223.39,223.2,0.82268521]
[1693460377552,0.07340365,223.4,223.2,0.82268521]
[1693460377949,0.07340365,223.39,223.2,0.82268521]
[1693460378150,0.07340365,223.4,223.2,0.82268521]
[1693460378354,0.07340365,223.39,223.2,0.82268521]
[1693460390260,0.07340365,223.4,223.2,0.89606245]
[1693460390465,0.07340365,223.4,223.2,0.07337724]
[1693460391061,0.07340365,223.4,223.19,0.07337724]
[1693460391262,0.07340365,223.4,223.2,0.82271125]
[1693460393667,0.07340365,223.39,223.2,0.82271125]
[1693460400675,0.07340365,223.4,223.2,0.82271125]
[1693460401477,0.07340365,223.44,223.24,0.07337724]
[1693460401671,0.07340365,223.44,223.25,0.82271125]
[1693460402178,0.07340365,223.46,223.25,0.82271125]
[1693460402378,0.07340365,223.46,223.22,0.07337724]
[1693460402578,0.07340365,223.47,223.23,0.8954006]
[1693460402878,0.07340365,223.47,223.24,0.82202336]
[1693460403777,0.07340365,223.48,223.24,0.82202336]
[1693460403977,0.07340365,223.48,223.23,0.82202336]
[1693460404279,0.07340365,223.48,223.24,0.82202336]
[1693460404479,0.07340365,223.48,223.25,0.82202336]
[1693460404676,0.07340365,223.49,223.26,0.82202336]
[1693460404878,0.07340365,223.49,223.21,0.07337724]
[1693460405078,0.07340365,223.49,223.22,0.82199765]
[1693460405978,0.07340365,223.49,223.21,0.82199765]
[1693460406279,0.07340365,223.49,223.22,0.82199765]
[1693460406478,0.07340365,223.49,223.23,0.82199765]
[1693460406677,0.07340365,223.5,223.21,0.82199765]
[1693460406875,0.07340365,223.5,223.22,0.82199765]
[1693460407177,0.07340365,223.5,223.23,0.82199765]
[1693460407878,0.07340365,223.5,223.24,0.82199765]
[1693460408177,0.07340365,223.5,223.25,0.82199765]
[1693460408378,0.07340365,223.5,223.19,0.07337724]
[1693460408677,0.07340365,223.5,223.2,0.82201699]
[1693460409773,0.07340365,223.51,223.2,0.82201699]
[1693460411879,0.07340365,223.51,223.21,0.82201699]
[1693460412078,0.07340365,223.51,223.22,0.82201699]
[1693460412279,0.07340365,223.51,223.23,0.82201699]
[1693460412579,0.07340365,223.51,223.24,0.82201699]
[1693460412774,0.07340365,223.52,223.19,0.82201699]
[1693460412979,0.07340365,223.52,223.2,0.82201699]
[1693460413180,0.07340365,223.52,223.19,0.82201699]
[1693460413382,0.07340365,223.52,223.2,0.82201699]
[1693460413582,0.07340365,223.52,223.19,0.82201699]
[1693460413782,0.07340365,223.52,223.2,0.82201699]
[1693460413981,0.07340365,223.52,223.19,0.82201699]
[1693460414183,0.07340365,223.52,223.2,0.82201699]
[1693460414483,0.07340365,223.52,223.21,0.82201699]
[1693460414682,0.07340365,223.52,223.22,0.82201699]
[1693460414881,0.07340365,223.52,223.12,0.14675448]
[1693460414882,0.07340365,223.53,223.23,0.82201699]
[1693460415078,0.07340365,223.52,223.24,0.82201699]
[1693460415279,0.07340365,223.52,223.25,0.82201699]
[1693460415475,0.07340365,223.52,223.2,0.82201699]
[1693460415675,0.07340365,223.53,223.21,0.82201699]
[1693460415883,0.07340365,223.53,223.19,0.82201699]
[1693460416182,0.07340365,223.53,223.2,0.82201699]
[1693460416384,0.07340365,223.52,223.19,0.82201699]
[1693460416677,0.07340365,223.53,223.2,0.82201699]
[1693460416881,0.07340365,223.53,223.19,0.82201699]
[1693460417082,0.07340365,223.53,223.2,0.82201699]
[1693460417282,0.07340365,223.53,223.19,0.82201699]
[1693460417484,0.07340365,223.53,223.2,0.82201699]
[1693460417683,0.07340365,223.53,223.19,0.82201699]
[1693460417883,0.07340365,223.53,223.2,0.82201699]
[1693460418083,0.07340365,223.53,223.21,0.82201699]
[1693460418278,0.07340365,223.53,223.19,0.82201699]
[1693460418485,0.07340365,223.53,223.2,0.82201699]
[1693460418681,0.07340365,223.53,223.19,0.82201699]
[1693460418881,0.07340365,223.53,223.2,0.82201699]
[1693460419180,0.07340365,223.53,223.21,0.82201699]
[1693460419383,0.07340365,223.53,223.22,0.82201699]
[1693460419578,0.07340365,223.53,223.23,0.82201699]
[1693460419782,0.07340365,223.53,223.24,0.82201699]
[1693460419982,0.07340365,223.53,223.25,0.82201699]
[1693460420283,0.07340365,223.53,223.26,0.82201699]
[1693460420484,0.07340365,223.53,223.18,0.07337724]
[1693460420684,0.07340365,223.53,223.19,0.82196711]
[1693460422488,0.07340365,223.53,223.19,0.89534435]
[1693460422690,0.07340365,223.53,223.2,0.82196711]
[1693460423088,0.07340365,223.53,223.19,0.82196711]
[1693460423389,0.07340365,223.53,223.2,0.82196711]
[1693460423585,0.07340365,223.53,223.21,0.82196711]
[1693460423785,0.07340365,223.53,223.2,0.82196711]
[1693460423984,0.07340365,223.53,223.21,0.82196711]
[1693460424289,0.07340365,223.53,223.22,0.82196711]
[1693460424489,0.07340365,223.53,223.23,0.82196711]
[1693460424690,0.07340365,223.53,223.24,0.82196711]
[1693460424890,0.07340365,223.53,223.2,0.82196711]
[1693460425090,0.07340365,223.53,223.21,0.82196711]
[1693460425287,0.07340365,223.53,223.22,0.82196711]
[1693460425488,0.07340365,223.53,223.23,0.82196711]
[1693460425790,0.07340365,223.53,223.24,0.82196711]
[1693460425990,0.07340365,223.53,223.25,0.82196711]
[1693460426193,0.07340365,223.53,223.26,0.82196711]
[1693460426390,0.07340365,223.53,223.27,0.82196711]
[1693460426591,0.07340365,223.53,223.19,0.07337724]
[1693460426892,0.07340365,223.53,223.2,0.82190694]
[1693460427487,0.07340365,223.53,223.2,0.89528418]
[1693460427690,0.07340365,223.53,223.21,0.82190694]
[1693460428493,2.44678858,223.66,223.21,0.82190694]
[1693460428794,0.07319345,223.52,223.22,0.82190694]
[1693460429090,0.07319345,223.52,223.23,0.82190694]
[1693460429393,0.07319345,223.52,223.24,0.82190694]
[1693460429593,0.07319345,223.52,223.25,0.82190694]
[1693460429795,0.07319345,223.52,223.26,0.82190694]
[1693460430094,0.07319345,223.52,223.27,0.82190694]
[1693460430395,0.07319345,223.52,223.2,0.07313807]
[1693460430694,0.07319345,223.51,223.21,0.89502817]
[1693460430894,0.07319345,223.51,223.22,0.8218901]
[1693460432596,0.07319345,223.5,223.22,0.89502817]
[1693460432796,0.07319345,223.5,223.23,0.8218901]
[1693460433497,0.07319345,223.49,223.23,0.89502817]
[1693460433694,0.07319345,223.49,223.24,0.8218901]
[1693460434495,0.07319345,223.47,223.25,0.07313807]
[1693460434695,0.07319345,223.47,223.26,0.8218901]
[1693460444506,0.07319345,223.46,223.26,0.8218901]
[1693460446506,0.07319345,223.47,223.26,0.8218901]
[1693460446700,0.07319345,223.46,223.26,0.8218901]
[1693460462020,0.07319345,223.47,223.26,0.89502817]
[1693460462214,0.07319345,223.46,223.27,0.8218901]
[1693460463620,0.07319345,223.46,223.25,0.07313807]
[1693460463821,0.07319345,223.46,223.26,0.82185372]
[1693460464522,0.07319345,223.46,223.26,0.89499179]
[1693460464822,0.07319345,223.46,223.27,0.82185372]
[1693460466722,0.07319345,223.46,223.26,0.07313807]
[1693460466929,0.07319345,223.46,223.27,0.82184479]
[1693460467529,0.07319345,223.46,223.25,0.07313807]
[1693460467729,0.07319345,223.46,223.26,0.82185422]
[1693460467924,0.07319345,223.47,223.26,0.89499229]
[1693460468125,0.07319345,223.47,223.27,0.89499229]
[1693460468329,0.07319345,223.47,223.28,0.82185422]
[1693460468724,0.07319345,223.48,223.28,0.82185422]
[1693460468928,0.07319345,223.48,223.26,0.07313807]
[1693460469130,0.07319345,223.47,223.27,0.82169775]
[1693460469330,0.07319345,223.48,223.27,0.82169775]
[1693460477839,0.07319345,223.48,223.28,0.82169775]
[1693460478036,0.07319345,223.48,223.25,0.07313807]
[1693460478236,0.07319345,223.48,223.26,0.82107824]
[1693460479744,0.07319345,223.49,223.26,0.82107824]
[1693460489852,0.07319345,223.49,223.26,0.89421631]
[1693460490053,0.07319345,223.49,223.27,0.82107824]
[1693460491652,0.07319345,223.48,223.27,0.82107824]
[1693460494853,0.07319345,223.48,223.27,0.89421631]
[1693460495054,0.07319345,223.48,223.28,0.82107824]
[1693460496354,0.07319345,223.48,223.26,0.07313807]
[1693460496554,0.07319345,223.48,223.27,0.82095917]
[1693460497454,0.07319345,223.48,223.27,0.89409724]
[1693460497648,0.07319345,223.48,223.28,0.82095917]
[1693460499557,0.07319345,223.49,223.28,0.82095917]
[1693460500057,0.07319345,223.48,223.28,0.82095917]
[1693460527680,0.07319345,223.47,223.28,0.82095917]
[1693460529082,0.07319345,223.48,223.28,0.89409724]
[1693460529281,0.07319345,223.48,223.29,0.82095917]
[1693460536486,0.07319345,223.48,223.28,0.07313807]
[1693460536687,0.07319345,223.48,223.27,0.07313807]
[1693460536885,0.07319345,223.48,223.28,0.82092717]
[1693460537487,0.07319345,223.48,223.28,0.89406524]
[1693460537682,0.07319345,223.48,223.28,0.07313807]
[1693460540790,0.07319345,223.48,223.27,0.07313807]
[1693460541089,0.07319345,223.48,223.21,0.14627614]
[1693460541090,0.07319345,223.48,223.28,0.8940807]
[1693460541292,0.07319345,223.48,223.28,0.07313807]
[1693460544093,0.07319345,223.48,223.27,0.07313807]
[1693460544293,0.07319345,223.48,223.28,0.82095218]
[1693460544893,0.07319345,223.48,223.28,0.89409025]
[1693460545193,0.07319345,223.48,223.29,0.82095218]
[1693460553399,0.07319345,223.49,223.29,0.82095218]
[1693460566512,2.43978195,223.63,223.29,0.82095218]
[1693460566813,0.0733959,223.49,223.3,0.82095218]
[1693460567012,0.0733959,223.49,223.28,0.07325371]
[1693460567214,0.0733959,223.49,223.29,0.82080118]
[1693460570110,0.0733959,223.5,223.29,0.82080118]
[1693460573517,0.0733959,223.49,223.29,0.82080118]
[1693460574018,0.0733959,223.5,223.29,0.82080118]
[1693460575418,0.0733959,223.5,223.29,0.89405489]
[1693460575618,0.0733959,223.5,223.3,0.82080118]
[1693460575817,0.0733959,223.5,223.28,0.07325371]
[1693460576013,0.0733959,223.5,223.29,0.82075799]
[1693460587232,0.0733959,223.49,223.29,0.82075799]
[1693460596038,0.0733959,223.49,223.29,0.8940117]
[1693460596239,0.0733959,223.49,223.3,0.82075799]
[1693460599639,0.0733959,223.5,223.3,0.82075799]
[1693460600234,0.0733959,223.51,223.3,0.8940117]
[1693460600437,0.0733959,223.51,223.31,0.82075799]
[1693460602441,0.0733959,223.51,223.29,0.07325371]
[1693460602742,0.0733959,223.51,223.3,0.82063584]
[1693460603339,0.0733959,223.52,223.3,0.82063584]
[1693460603943,0.0733959,223.51,223.3,0.82063584]
[1693460604145,0.0733959,223.52,223.3,0.82063584]
[1693460605439,0.0733959,223.51,223.3,0.82063584]
[1693460606348,0.0733959,223.51,223.28,0.07325371]
[1693460606543,0.0733959,223.51,223.29,0.82079536]
[1693460613656,0.0733959,223.5,223.29,0.82079536]
[1693460620062,0.0733959,223.5,223.27,0.07325371]
[1693460620261,0.0733959,223.5,223.28,0.82091426]
[1693460623664,0.0733959,223.5,223.28,0.89416797]
[1693460623864,0.0733959,223.5,223.29,0.82091426]
[1693460626465,0.0733959,223.51,223.29,0.82091426]
[1693460632665,0.0733959,223.5,223.29,0.82091426]
[1693460640477,0.0733959,223.49,223.29,0.89416797]
[1693460640670,0.0733959,223.49,223.3,0.82091426]
[1693460642077,0.0733959,223.5,223.3,0.82091426]
[1693460642276,0.0733959,223.49,223.3,0.82091426]
[1693460643277,0.0733959,223.5,223.3,0.82091426]
[1693460643978,0.0733959,223.49,223.3,0.82091426]
[1693460644877,0.0733959,223.5,223.3,0.82091426]
[1693460659091,0.0733959,223.49,223.3,0.82091426]
[1693460679612,0.0733959,223.49,223.3,0.89416797]
[1693460679812,0.0733959,223.49,223.3,0.07325371]
[1693460680512,0.0733959,223.49,223.29,0.07325371]
[1693460680712,0.0733959,223.49,223.3,0.82080133]
[1693460684017,2.44653024,223.63,223.3,0.82080133]
[1693460684218,0.07342192,223.49,223.29,0.07327844]
[1693460684413,0.07342192,223.49,223.3,0.82079053]
[1693460706328,0.07342192,223.48,223.28,0.07327844]
[1693460706532,0.07342192,223.49,223.29,0.82091452]
[1693460709929,0.07342192,223.49,223.28,0.82091452]
[1693460710134,0.07342192,223.49,223.29,0.82092031]
[1693460710335,0.07342192,223.49,223.28,0.82092031]
[1693460710635,0.07342192,223.49,223.29,0.82091829]
[1693460710930,0.07342192,223.49,223.27,0.07327844]
[1693460711134,0.07342192,223.49,223.28,0.82095224]
[1693460725040,0.07342192,223.49,223.27,0.07327844]
[1693460725247,0.07342192,223.49,223.28,0.8210386]
[1693460731655,0.07342192,223.5,223.28,0.89431704]
[1693460731946,0.07342192,223.5,223.29,0.8210386]
[1693460745657,0.07342192,223.51,223.29,0.8210386]
[1693460760572,0.07342192,223.5,223.29,0.8210386]
[1693460763973,0.07342192,223.5,223.29,0.89431704]
[1693460764176,0.07342192,223.5,223.3,0.8210386]
[1693460787584,0.07342192,223.5,223.3,0.89431704]
[1693460787785,0.07342192,223.5,223.31,0.8210386]
[1693460795293,0.07342192,223.5,223.29,0.07327844]
[1693460795591,0.07342192,223.5,223.3,0.82073106]
[1693460798693,0.07342192,223.49,223.3,0.82073106]
[1693460799294,0.07342192,223.5,223.3,0.82073106]
[1693460803397,0.07342192,223.5,223.3,0.8940095]
[1693460803593,0.07342192,223.5,223.31,0.82073106]
[1693460805999,0.07342192,223.5,223.3,0.07327844]
[1693460806195,0.07342192,223.5,223.29,0.07327844]
[1693460806395,0.07342192,223.5,223.3,0.82073328]
[1693460808594,0.07342192,223.5,223.3,0.89401172]
[1693460808796,0.07342192,223.5,223.31,0.82073328]
[1693460810103,0.07342192,223.5,223.3,0.07327844]
[1693460810104,0.07342192,223.5,223.29,0.07327844]
[1693460810304,0.07342192,223.5,223.3,0.89402773]
[1693460810500,0.07342192,223.5,223.31,0.82074929]
[1693460810902,0.07342192,223.5,223.29,0.07327844]
[1693460811205,0.07342192,223.5,223.3,0.820778]
[1693460823515,0.07342192,223.5,223.3,0.89405644]
[1693460823718,0.07342192,223.5,223.31,0.820778]
[1693460824816,0.07342192,223.5,223.29,0.07327844]
[1693460825015,0.07342192,223.5,223.3,0.82073325]
[1693460828517,0.07342192,223.49,223.3,0.82073325]
[1693460829114,0.07342192,223.49,223.28,0.07327844]
[1693460829321,0.07342192,223.49,223.29,0.82083439]
[1693460834320,0.07342192,223.5,223.29,0.82083439]
[1693460837021,0.07342192,223.49,223.29,0.82083439]
[1693460838026,0.14684385,223.52,223.29,0.82083439]
[1693460838027,0.07342192,223.5,223.29,0.82083439]
[1693460853534,0.07342192,223.5,223.29,0.89411283]
[1693460853732,0.07342192,223.5,223.3,0.82083439]
[1693460854834,0.07342192,223.5,223.28,0.07327844]
[1693460855036,0.07342192,223.5,223.29,0.82081504]
[1693460856436,0.07342192,223.5,223.29,0.89409348]
[1693460856734,0.07342192,223.5,223.3,0.82081504]
[1693460856933,0.07342192,223.5,223.29,0.82081504]
[1693460857138,0.07342192,223.5,223.3,0.82083812]
[1693460857436,0.07342192,223.5,223.28,0.07327844]
[1693460857738,0.07342192,223.5,223.29,0.82084264]
[1693460858140,0.07342192,223.5,223.29,0.89412108]
[1693460858339,0.07342192,223.5,223.3,0.82084264]
[1693460859340,0.07342192,223.49,223.3,0.82084264]
[1693460875850,0.07342192,223.5,223.3,0.82084264]
[1693460876453,0.07342192,223.49,223.3,0.82084264]
[1693460880652,0.07342192,223.5,223.3,0.89412108]
[1693460880851,0.07342192,223.5,223.3,0.07327844]
[1693460882054,0.07342192,223.5,223.31,0.82075253]
[1693460882254,0.07342192,223.5,223.29,0.07327844]
[1693460882449,0.07342192,223.5,223.3,0.82076806]
[1693460898662,0.07342192,223.5,223.3,0.8940465]
[1693460898867,0.07342192,223.5,223.31,0.82076806]
[1693460899264,0.07342192,223.5,223.29,0.07327844]
[1693460899569,0.07342192,223.5,223.3,0.82076526]
[1693460902376,0.07342192,223.5,223.3,0.8940437]
[1693460902575,0.07342192,223.5,223.31,0.82076526]
[1693460903874,0.07342192,223.5,223.29,0.07327844]
[1693460904074,0.07342192,223.5,223.3,0.8207739]
[1693460905378,0.07342192,223.5,223.3,0.89405234]
[1693460905584,0.07342192,223.5,223.31,0.8207739]
[1693460906279,0.07342192,223.5,223.29,0.07327844]
[1693460906480,0.07342192,223.5,223.3,0.82078753]
[1693460906778,0.07342192,223.5,223.3,0.89406597]
[1693460906980,0.07342192,223.5,223.31,0.82078753]
[1693460908181,0.07342192,223.5,223.29,0.07327844]
[1693460908375,0.07342192,223.5,223.3,0.82079891]
[1693460910581,0.07342192,223.5,223.3,0.89407735]
[1693460910778,0.07342192,223.5,223.3,0.07327844]
[1693460911581,0.07342192,223.5,223.29,0.07327844]
[1693460911778,0.07342192,223.5,223.3,0.82080405]
[1693460914280,0.07342192,223.5,223.3,0.89408249]
[1693460914481,0.07342192,223.5,223.31,0.82080405]
[1693460914883,0.07342192,223.5,223.3,0.07327844]
[1693460915682,0.07342192,223.5,223.29,0.07327844]
[1693460915883,0.07342192,223.5,223.3,0.82080254]
[1693460916585,0.07342192,223.5,223.3,0.89408098]
[1693460916780,0.07342192,223.5,223.31,0.82080254]
[1693460928091,0.07342192,223.51,223.31,0.82080254]
[1693460932393,0.07342192,223.5,223.31,0.82080254]
[1693460934391,0.07342192,223.51,223.31,0.82080254]
[1693460936594,0.07342192,223.5,223.31,0.82080254]
[1693460940899,0.14684385,223.53,223.31,0.82080254]
[1693460940900,0.07342192,223.51,223.31,0.82080254]
[1693460941199,0.07342192,223.5,223.31,0.82080254]
[1693460943601,0.07342192,223.51,223.31,0.82080254]
[1693460947401,0.07342192,223.5,223.31,0.82080254]
[1693460949405,0.07342192,223.51,223.31,0.82080254]
[1693460950304,0.07342192,223.5,223.31,0.82080254]
[1693460950701,0.07342192,223.51,223.31,0.82080254]
[1693460951407,0.07342192,223.5,223.31,0.82080254]
[1693460952609,0.07342192,223.51,223.31,0.89408098]
[1693460952808,0.07342192,223.51,223.3,0.07327844]
[1693460953007,0.07342192,223.51,223.31,0.89457405]
[1693460953204,0.07342192,223.51,223.31,0.07327844]
[1693460953803,0.07342192,223.51,223.3,0.07327844]
[1693460954006,0.07342192,223.51,223.31,0.89456748]
[1693460954209,0.07342192,223.51,223.31,0.07327844]
[1693460955009,0.07342192,223.51,223.3,0.07327844]
[1693460955210,0.07342192,223.51,223.31,0.89456557]
[1693460955411,0.07342192,223.51,223.31,0.07327844]
[1693460955810,0.07342192,223.51,223.32,0.82125861]
[1693460957209,0.07342192,223.52,223.32,0.82125861]
[1693460957712,0.07342192,223.51,223.32,0.82125861]
[1693460958810,0.07342192,223.52,223.32,0.82125861]
[1693460963921,0.07342192,223.52,223.31,0.82125861]
[1693460964121,0.07342192,223.52,223.32,0.82123522]
[1693460964321,0.07342192,223.52,223.31,0.82123522]
[1693460964523,0.07342192,223.52,223.32,0.8212574]
[1693460964718,0.07342192,223.52,223.31,0.8212574]
[1693460964923,0.07342192,223.52,223.32,0.82125093]
[1693460965121,0.07342192,223.52,223.3,0.07327844]
[1693460965323,0.07342192,223.52,223.31,0.82125061]
[1693460966526,0.07342192,223.53,223.31,0.89452905]
[1693460966725,0.07342192,223.53,223.32,0.82125061]
[1693460966924,0.07342192,223.53,223.31,0.89452905]
[1693460967128,0.07342192,223.53,223.32,0.82122946]
[1693460968719,0.07342192,223.53,223.3,0.07327844]
[1693460968927,0.07342192,223.53,223.31,0.82123275]
[1693460978725,0.07342192,223.53,223.31,0.89451119]
[1693460978929,0.07342192,223.53,223.32,0.82123275]
[1693460984835,0.07342192,223.52,223.32,0.82123275]
[1693460993345,0.07342192,223.52,223.32,0.89451119]
[1693460993642,0.07342192,223.52,223.33,0.82123275]
[1693460993843,0.07342192,223.56,223.36,0.07327844]
[1693460994043,0.07342192,223.57,223.37,0.89451119]
[1693460994243,0.07342192,223.57,223.38,0.82123275]
[1693460994743,0.07342192,223.6,223.38,0.82123275]
[1693460994944,0.07342192,223.6,223.35,0.07327844]
[1693460995142,0.07342192,223.6,223.36,0.82047488]
[1693460995838,2.44739756,223.73,223.36,0.82047488]
[1693460995839,0.07342192,223.61,223.36,0.82047488]
[1693460996044,0.07342192,223.61,223.37,0.82047488]
[1693460996239,0.07342192,223.61,223.35,0.82047488]
[1693460996543,0.07342192,223.61,223.36,0.82047488]
[1693460996743,0.07342192,223.61,223.37,0.82047488]
[1693460996938,0.07342192,223.61,223.34,0.82047488]
[1693460997143,0.07342192,223.61,223.35,0.82047488]
[1693460997338,0.07342192,223.61,223.36,0.82047488]
[1693460997642,0.07342192,223.61,223.37,0.82047488]
[1693460997844,0.07342192,223.61,223.33,0.07327844]
[1693460997845,0.07342192,223.62,223.38,0.82047488]
[1693460998043,0.07342192,223.62,223.33,0.07327844]
[1693460998244,0.07342192,223.62,223.34,0.82046497]
[1693460998740,0.07342192,223.62,223.35,0.82046497]
[1693460998936,0.07342192,223.62,223.36,0.82046497]
[1693460999138,0.07342192,223.62,223.37,0.82046497]
[1693460999338,0.07342192,223.62,223.33,0.82046497]
[1693460999542,0.07342192,223.62,223.34,0.82046497]
[1693460999738,0.07342192,223.63,223.35,0.82046497]
[1693460999946,0.07342192,223.63,223.36,0.82046497]
[1693461000145,0.07342192,223.63,223.37,0.82046497]
[1693461000346,0.07342192,223.63,223.38,0.82046497]
[1693461000546,0.07342192,223.63,223.32,0.07327844]
[1693461000745,0.07342192,223.63,223.33,0.82048958]
[1693461002742,0.07342192,223.63,223.34,0.82048958]
[1693461002949,0.07342192,223.63,223.35,0.82048958]
[1693461003145,0.07342192,223.63,223.36,0.82048958]
[1693461003449,0.07342192,223.64,223.37,0.82048958]
[1693461003650,0.07342192,223.64,223.38,0.82048958]
[1693461003852,0.07342192,223.64,223.39,0.82048958]
[1693461004044,0.07342192,223.64,223.33,0.82048958]
[1693461004246,0.07342192,223.64,223.34,0.82046847]
[1693461004450,0.07342192,223.64,223.35,0.82046847]
[1693461004644,0.07342192,223.65,223.33,0.82046847]
[1693461004846,0.07342192,223.65,223.34,0.82046847]
[1693461005150,0.07342192,223.65,223.35,0.82046847]
[1693461005352,0.07342192,223.65,223.36,0.82046847]
[1693461005552,0.07342192,223.65,223.37,0.82046847]
[1693461005753,0.07342192,223.65,223.32,0.82046847]
[1693461005953,0.07342192,223.65,223.33,0.82046847]
[1693461006153,0.07342192,223.65,223.34,0.82046847]
[1693461006350,0.07342192,223.65,223.35,0.82046847]
[1693461006549,0.07342192,223.65,223.36,0.82046847]
[1693461006751,0.07342192,223.65,223.37,0.82046847]
[1693461007053,0.07342192,223.65,223.38,0.82046847]
[1693461007253,0.07342192,223.65,223.31,0.07327844]
[1693461007254,0.07342192,223.65,223.39,0.82046847]
[1693461007454,0.07342192,223.65,223.31,0.07327844]
[1693461007656,0.07342192,223.65,223.32,0.82045282]
[1693461008054,0.07342192,223.65,223.33,0.82045282]
[1693461008253,0.07342192,223.65,223.34,0.82045282]
[1693461008454,0.07342192,223.65,223.35,0.82045282]
[1693461008654,0.07342192,223.65,223.31,0.82045282]
[1693461008851,0.07342192,223.65,223.32,0.82045282]
[1693461009055,0.07342192,223.65,223.31,0.82045282]
[1693461009255,0.07342192,223.65,223.32,0.82045282]
[1693461009458,0.07342192,223.65,223.33,0.82045282]
[1693461009757,0.07342192,223.65,223.34,0.82045282]
[1693461009951,0.07342192,223.65,223.31,0.82045282]
[1693461010151,0.07342192,223.65,223.3,0.07327844]
[1693461010152,0.07342192,223.65,223.32,0.82045282]
[1693461010349,0.07342192,223.65,223.33,0.82045282]
[1693461010550,0.07342192,223.65,223.34,0.82045282]
[1693461010753,0.07342192,223.66,223.35,0.82045282]
[1693461010958,0.07342192,223.66,223.36,0.82045282]
[1693461011157,0.07342192,223.66,223.37,0.82045282]
[1693461011354,0.07342192,223.66,223.31,0.82045282]